Workbook

Sheet Innehåll
B2: Innehållsförteckning
B4: Anvisningar | C4: Anvisningar för att producera diagram till webben
B6: Vägledning | C6: Definitioner och förklaringar
B8: Data | C8: Tidsserier som ligger till grund för diagrammen samt originalserie
B10: Diagram 1 | C10: =Data!A5 -> Hushållens finansiella tillgångar (mdkr) och börsindex
B12: Diagram 2 | C12: …
B14: Diagram 3 | C14: …
B16: Diagram 4 | C16: …

Sheet Contents
B2: Contents
B4: Guide | C4: Definitions & explanations
B6: Data | C6: …
B8: Graph 1 | C8: =Data!A1 -> Household financial assets (SEK billions) and stock market index
B10: Graph 2 | C10: …
B12: Graph 3 | C12: …
B14: Graph 4 | C14: …

Sheet Vägledning
B2: Vägledning
B4: Utskriftstips | C4: Utskriftsformatet i samtliga flikar med diagram är förinställt på att utskriften förstoras till 120% och innehållet centreras vertikalt och horisontellt.
C5: Om utskriften av diagrammen inte blir tillfredställande så ändra inställningarna under utskriftsformat till vad som passar just din skrivare.
B8: Definitioner & förklaringar
C10: Diagrammet visar hushållens finansiella tillgångar (vänster) och börskursutecklingen enligt OMX Affärsvärldens generalindex (höger).

Sheet Guide
B2: Guide
B8: Definitions & explanations
C10: The diagram shows household financial assets (left) and the stock market development according to the OMX Affärsvärlden General Index (right)

Sheet Data
A1: Household financial assets (SEK billions) and stock market index
D3: Balances, SEK billions | J3: Stock, SEK millions | K3: Stock, SEK millions | L3: Stock, SEK millions | M3: Stock, SEK millions | N3: Stock, SEK millions
D4: Currency and deposits | E4: Shares and funds | F4: Tenant ownership rights | G4: Insurance, pension and standardised guarantee schemes | H4: Other assets | I4: Stock market index (right) | J4: Currency and deposits (FA2000+FA4000) | K4: Shares and funds (FA5110+FA5120+FA5200) | L4: Other equity (FA5190), counterpart sector S1 | M4: Insurance, pension and standardised guarantee schemes (FA6000) | N4: Other assets | O4: Stock market index (OMX)
A5: Hushållens finansiella tillgångar (mdkr) och börsindex
D7: Ställningsvärden, miljarder kronor | J7: Ställningsvärden, mnkr | K7: Ställningsvärden, mnkr | L7: Ställningsvärden, mnkr | M7: Ställningsvärden, mnkr | N7: Ställningsvärden, mnkr
A8: År, Year | B8: År och kvartal | C8: Year and Quarter | D8: Sedlar, mynt och Inlåning | E8: Aktier och fonder | F8: Bostadsrättsandelar | G8: Försäkringssparande | H8: Övriga tillgångar | I8: Börsindex (höger) | J8: Sedlar, mynt, Inlåning och lån (FA2000+FA4000) | K8: Aktier och fonder (FA5110+FA5120+FA5200) | L8: Bostadsrättsandelar (FA5190) | M8: Försäkringssparande (FA6000) | N8: Övrigt | O8: omx affärsvärldens generalindex
A9: 2009 | B9: 2009 K1 | C9: 2009 Q1 | D9: =J9/1000 -> 1060.574 | E9: =K9/1000 -> 1237.914 | F9: 1221.862 | G9: 2713.022 | H9: 391.912 | I9: =O9 -> 192.93 | J9: 1060574 | K9: 1237914 | L9: 1221862 | M9: 2713022 | N9: 391912 | O9: 192.93
B10: 2009 K2 | C10: 2009 Q2 | D10: =J10/1000 -> 1091.508 | E10: =K10/1000 -> 1501.496 | F10: =L10/1000 -> 1216.162 | G10: =M10/1000 -> 2788.332 | H10: =N10/1000 -> 404.987 | I10: 235.95 | J10: 1091508 | K10: 1501496 | L10: 1216162 | M10: 2788332 | N10: 404987 | O10: 235.95
B11: 2009 K3 | C11: 2009 Q3 | D11: 1092.43 | E11: 1709.577 | F11: 1306.385 | G11: 2841.512 | H11: 404.874 | I11: 270.59 | J11: 1092430 | K11: 1709577 | L11: 1306385 | M11: 2841512 | N11: 404874 | O11: 270.59
B12: 2009 K4 | C12: 2009 Q4 | D12: 1097.384 | E12: 1829.042 | F12: 1321.707 | G12: 2851.755 | H12: 426.648 | I12: 288.8 | J12: 1097384 | K12: 1829042 | L12: 1321707 | M12: 2851755 | N12: 426648 | O12: 288.8
A13: 2010 | B13: 2010 K1 | C13: 2010 Q1 | D13: 1089.747 | E13: 1975.554 | F13: 1365.397 | G13: 2994.658 | H13: 416.244 | I13: 313.51 | J13: 1089747 | K13: 1975554 | L13: 1365397 | M13: 2994658 | N13: 416244 | O13: 313.51
B14: 2010 K2 | C14: 2010 Q2 | D14: 1125.441 | E14: 1880.707 | F14: 1363.248 | G14: 3080.225 | H14: 411.729 | I14: 301.84 | J14: 1125441 | K14: 1880707 | L14: 1363248 | M14: 3080225 | N14: 411729 | O14: 301.84
B15: 2010 K3 | C15: 2010 Q3 | D15: 1144.616 | E15: 2023.53 | F15: 1423.36 | G15: 3171.512 | H15: 400.708 | I15: 331.19 | J15: 1144616 | K15: 2023530 | L15: 1423360 | M15: 3171512 | N15: 400708 | O15: 331.19
B16: 2010 K4 | C16: 2010 Q4 | D16: 1178.148 | E16: 2114.347 | F16: 1475.18 | G16: 3272.584 | H16: 393.578 | I16: =O16 -> 355.65 | J16: 1178148 | K16: 2114347 | L16: 1475180 | M16: 3272584 | N16: 393578 | O16: 355.65
A17: 2011 | B17: 2011 K1 | C17: 2011 Q1 | D17: 1175.513 | E17: 2085.966 | F17: 1486.306 | G17: 3300.125 | H17: 375.899 | I17: 351.31 | J17: 1175513 | K17: 2085966 | L17: 1486306 | M17: 3300125 | N17: 375899 | O17: 351.31
B18: 2011 K2 | C18: 2011 Q2 | D18: 1211.472 | E18: 1951.436 | F18: 1470.752 | G18: 3348.505 | H18: 375.74 | I18: =O18 -> 341.51 | J18: 1211472 | K18: 1951436 | L18: 1470752 | M18: 3348505 | N18: 375740 | O18: 341.51
B19: 2011 K3 | C19: 2011 Q3 | D19: 1239.745 | E19: 1584.692 | F19: 1486.554 | G19: 3241.537 | H19: 356.716 | I19: 274.02 | J19: 1239745 | K19: 1584692 | L19: 1486554 | M19: 3241537 | N19: 356716 | O19: 274.02
B20: 2011 K4 | C20: 2011 Q4 | D20: 1271.351 | E20: 1699.307 | F20: 1480.468 | G20: 3323.871 | H20: 362.578 | I20: 297.06 | J20: 1271351 | K20: 1699307 | L20: 1480468 | M20: 3323871 | N20: 362578 | O20: 297.06
A21: 2012 | B21: 2012 K1 | C21: 2012 Q1 | D21: 1280.945 | E21: 1919.949 | F21: 1562.839 | G21: 3385.244 | H21: 357.717 | I21: 327.23 | J21: 1280945 | K21: 1919949 | L21: 1562839 | M21: 3385244 | N21: 357717 | O21: 327.23
B22: 2012 K2 | C22: 2012 Q2 | D22: 1331.407 | E22: 1830.035 | F22: 1566.471 | G22: 3371.015 | H22: 354.762 | I22: 305.82 | J22: 1331407 | K22: 1830035 | L22: 1566471 | M22: 3371015 | N22: 354762 | O22: 305.82
B23: 2012 K3 | C23: 2012 Q3 | D23: 1354.503 | E23: 1891.766 | F23: 1605.826 | G23: 3394.981 | H23: 349.641 | I23: 320.65 | J23: 1354503 | K23: 1891766 | L23: 1605826 | M23: 3394981 | N23: 349641 | O23: 320.65
B24: 2012 K4 | C24: 2012 Q4 | D24: 1370.713 | E24: 1829.201 | F24: 1619.893 | G24: 3412.993 | H24: 348.158 | I24: 332.39 | J24: 1370713 | K24: 1829201 | L24: 1619893 | M24: 3412993 | N24: 348158 | O24: 332.39
A25: 2013 | B25: 2013 K1 | C25: 2013 Q1 | D25: 1373.701 | E25: 2006.408 | F25: 1693.347 | G25: 3546.99 | H25: 349.929 | I25: 362.82 | J25: 1373701 | K25: 2006408 | L25: 1693347 | M25: 3546990 | N25: 349929 | O25: 362.82
B26: 2013 K2 | C26: 2013 Q2 | D26: 1412.04 | E26: 1974.283 | F26: 1724.012 | G26: 3591.203 | H26: 368.039 | I26: 350.02 | J26: 1412040 | K26: 1974283 | L26: 1724012 | M26: 3591203 | N26: 368039 | O26: 350.02
B27: 2013 K3 | C27: 2013 Q3 | D27: 1420.175 | E27: 2095.4 | F27: 1757.229 | G27: 3703.243 | H27: 356.229 | I27: 386.07 | J27: 1420175 | K27: 2095400 | L27: 1757229 | M27: 3703243 | N27: 356229 | O27: 386.07
B28: 2013 K4 | C28: 2013 Q4 | D28: 1439.163 | E28: 2160.946 | F28: 1788.206 | G28: 3809.613 | H28: 352.575 | I28: 410.07 | J28: 1439163 | K28: 2160946 | L28: 1788206 | M28: 3809613 | N28: 352575 | O28: 410.07
A29: 2014 | B29: 2014 K1 | C29: 2014 Q1 | D29: 1428.51 | E29: 2228.477 | F29: 1872.679 | G29: 3933.634 | H29: 375.079 | I29: 425.57 | J29: 1428510 | K29: 2228477 | L29: 1872679 | M29: 3933634 | N29: 375079 | O29: 425.57
B30: 2014 K2 | C30: 2014 Q2 | D30: 1475.283 | E30: 2443.46 | F30: 1900.893 | G30: 4099.31 | H30: 394.765 | I30: 434.49 | J30: 1475283 | K30: 2443460 | L30: 1900893 | M30: 4099310 | N30: 394765 | O30: 434.49
B31: 2014 K3 | C31: 2014 Q3 | D31: 1478.6 | E31: 2526.105 | F31: 2000.434 | G31: 4182.354 | H31: 375.865 | I31: 433.3 | J31: 1478600 | K31: 2526105 | L31: 2000434 | M31: 4182354 | N31: 375865 | O31: 433.3
B32: 2014 K4 | C32: 2014 Q4 | D32: 1502.528 | E32: 2680.267 | F32: 2043.075 | G32: 4340.22 | H32: 362.807 | I32: 459.359123 | J32: 1502528 | K32: 2680267 | L32: 2043075 | M32: 4340220 | N32: 362807 | O32: 459.359123
A33: 2015 | B33: 2015 K1 | C33: 2015 Q1 | D33: 1494.375 | E33: 2970.635 | F33: 2217.465 | G33: 4590.122 | H33: 427.225 | I33: 525.808257 | J33: 1494375 | K33: 2970635 | L33: 2217465 | M33: 4590122 | N33: 427225 | O33: 525.808257
B34: 2015 K2 | C34: 2015 Q2 | D34: 1573.655 | E34: 2869.48 | F34: 2237.078 | G34: 4554.033 | H34: 437.03 | I34: 489.396806 | J34: 1573655 | K34: 2869480 | L34: 2237078 | M34: 4554033 | N34: 437030 | O34: 489.396806
B35: 2015 K3 | C35: 2015 Q3 | D35: 1595.508 | E35: 2744.555 | F35: 2384.074 | G35: 4446.79 | H35: 417.911 | I35: 461.711683 | J35: 1595508 | K35: 2744555 | L35: 2384074 | M35: 4446790 | N35: 417911 | O35: 461.711683
B36: 2015 K4 | C36: 2015 Q4 | D36: 1617.253 | E36: 2930.064 | F36: 2400.799 | G36: 4538.497 | H36: 423.466 | I36: 490.461358 | J36: 1617253 | K36: 2930064 | L36: 2400799 | M36: 4538497 | N36: 423466 | O36: 490.461358
A37: 2016 | B37: 2016 K1 | C37: 2016 Q1 | D37: 1636.721 | E37: 2867.447 | F37: 2509.326 | G37: 4502.555 | H37: 469.751 | I37: 469.03606 | J37: 1636721 | K37: 2867447 | L37: 2509326 | M37: 4502555 | N37: 469751 | O37: 469.03606
B38: 2016 K2 | C38: 2016 Q2 | D38: 1713.367 | E38: 2877.545 | F38: 2444.829 | G38: 4556.824 | H38: 479.771 | I38: 456.871609 | J38: 1713367 | K38: 2877545 | L38: 2444829 | M38: 4556824 | N38: 479771 | O38: 456.871609
B39: 2016 K3 | C39: 2016 Q3 | D39: 1728.412 | E39: 3087.193 | F39: 2600.116 | G39: 4757.531 | H39: 464.61 | I39: 502.263497 | J39: 1728412 | K39: 3087193 | L39: 2600116 | M39: 4757531 | N39: 464610 | O39: 502.263497
B40: 2016 K4 | C40: 2016 Q4 | D40: 1740.545 | E40: 3316.173 | F40: 2677.47 | G40: 4766.82 | H40: 451.793 | I40: 518.520013 | J40: 1740545 | K40: 3316173 | L40: 2677470 | M40: 4766820 | N40: 451793 | O40: 518.520013
A41: 2017 | B41: 2017 K1 | C41: 2017 Q1 | D41: 1746.201 | E41: 3473.433 | F41: 2823.263 | G41: 4909.562 | H41: 548.116 | I41: 545.291464 | J41: 1746201 | K41: 3473433 | L41: 2823263 | M41: 4909562 | N41: 548116 | O41: 545.291464
B42: 2017 K2 | C42: 2017 Q2 | D42: 1802.44 | E42: 3513.724 | F42: 2826.193 | G42: 4974.968 | H42: 540.452 | I42: 559.20878 | J42: 1802440 | K42: 3513724 | L42: 2826193 | M42: 4974968 | N42: 540452 | O42: 559.20878
B43: 2017 K3 | C43: 2017 Q3 | D43: 1841.648 | E43: 3565.323 | F43: 2852.109 | G43: 5029.241 | H43: 535.577 | I43: 567.293172 | J43: 1841648 | K43: 3565323 | L43: 2852109 | M43: 5029241 | N43: 535577 | O43: 567.293172
B44: 2017 K4 | C44: 2017 Q4 | D44: 1861.875 | E44: 3532.926 | F44: 2648.049 | G44: 5139.848 | H44: 524.912 | I44: 550.608049 | J44: 1861875 | K44: 3532926 | L44: 2648049 | M44: 5139848 | N44: 524912 | O44: 550.608049
A45: 2018 | B45: 2018 K1 | C45: 2018 Q1 | D45: 1886.831 | E45: 3523.808 | F45: 2703.101 | G45: 5187.332 | H45: 549.674 | I45: 541.098174 | J45: 1886831 | K45: 3523808 | L45: 2703101 | M45: 5187332 | N45: 549674 | O45: 541.098174
B46: 2018 K2 | C46: 2018 Q2 | D46: 1942.528 | E46: 3601.226 | F46: 2738.969 | G46: 5396.403 | H46: 553.359 | I46: 555.226786 | J46: 1942528 | K46: 3601226 | L46: 2738969 | M46: 5396403 | N46: 553359 | O46: 555.226786
B47: 2018 K3 | C47: 2018 Q3 | D47: 1972.139 | E47: 3781.723 | F47: 2787.554 | G47: 5513.023 | H47: 542.733 | I47: 592.798182 | J47: 1972139 | K47: 3781723 | L47: 2787554 | M47: 5513023 | N47: 542733 | O47: 592.798182
B48: 2018 K4 | C48: 2018 Q4 | D48: 2002.642 | E48: 3366.256 | F48: 2744.553 | G48: 5203.409 | H48: 509.646 | I48: =O48 -> 506.137307 | J48: 2002642 | K48: 3366256 | L48: 2744553 | M48: 5203409 | N48: 509646 | O48: 506.137307
A49: 2019 | B49: 2019 K1 | C49: 2019 Q1 | D49: 2022.142 | E49: 3758.331 | F49: 2812.441 | G49: 5570.692 | H49: 540.34 | I49: 566.2121 | J49: 2022142 | K49: 3758331 | L49: 2812441 | M49: 5570692 | N49: 540340 | O49: 566.2121
B50: 2019 K2 | C50: 2019 Q2 | D50: 2088.632 | E50: 3914.327 | F50: 2884.648 | G50: 5735.199 | H50: 552.256 | I50: 592.757895 | J50: 2088632 | K50: 3914327 | L50: 2884648 | M50: 5735199 | N50: 552256 | O50: 592.757895
B51: 2019 K3 | C51: 2019 Q3 | D51: 2097.954 | E51: 4031.486 | F51: 2967.527 | G51: 5878.385 | H51: 497.412 | I51: 603.974512 | J51: 2097954 | K51: 4031486 | L51: 2967527 | M51: 5878385 | N51: 497412 | O51: 603.974512
B52: 2019 K4 | C52: 2019 Q4 | D52: 2098.633 | E52: 4317.878 | F52: 3026.367 | G52: 6069.957 | H52: 546.206 | I52: 657.894436 | J52: 2098633 | K52: 4317878 | L52: 3026367 | M52: 6069957 | N52: 546206 | O52: 657.894436
A53: 2020 | B53: 2020 K1 | C53: 2020 Q1 | D53: 2181.928 | E53: 3697.47 | F53: 3123.972 | G53: 5698.111 | H53: 564.867 | I53: 537.091772 | J53: 2181928 | K53: 3697470 | L53: 3123972 | M53: 5698111 | N53: 564867 | O53: 537.091772
B54: 2020 K2 | C54: 2020 Q2 | D54: 2258.721 | E54: 4230.931 | F54: 3102.311 | G54: 6065.554 | H54: 615.651 | I54: 625.48543 | J54: 2258721 | K54: 4230931 | L54: 3102311 | M54: 6065554 | N54: 615651 | O54: 625.48543
B55: 2020 K3 | C55: 2020 Q3 | D55: 2273.785 | E55: 4624.483 | F55: 3263.617 | G55: 6306.744 | H55: 601.476 | I55: 704.965761 | J55: 2273785 | K55: 4624483 | L55: 3263617 | M55: 6306744 | N55: 601476 | O55: 704.965761
B56: 2020K4 | C56: 2020 Q4 | D56: 2315.478 | E56: 4925.779 | F56: 3320.45 | G56: 6481.092 | H56: 614.529 | I56: 744.194363 | J56: 2315478 | K56: 4925779 | L56: 3320450 | M56: 6481092 | N56: 614529 | O56: 744.194363
A57: 2021 | B57: 2021K1 | C57: 2021 Q1 | D57: 2344.093 | E57: 5333.55 | F57: 3474.417 | G57: 6823.166 | H57: 636.079 | I57: 845.67883 | J57: 2344093 | K57: 5333550 | L57: 3474417 | M57: 6823166 | N57: 636079 | O57: 845.67883
B58: 2021K2 | C58: 2021 Q2 | D58: 2420.809 | E58: 5637.801 | F58: 3518.311 | G58: 7055.705 | H58: 633.965 | I58: 889.712195 | J58: 2420809 | K58: 5637801 | L58: 3518311 | M58: 7055705 | N58: 633965 | O58: 889.712195
B59: 2021K3 | C59: 2021 Q3 | D59: 2464.553 | E59: 5630.899 | F59: 3538.989 | G59: 7154.06 | H59: 624.274 | I59: 901.379397 | J59: 2464553 | K59: 5630899 | L59: 3538989 | M59: 7154060 | N59: 624274 | O59: 901.379397
B60: 2021K4 | C60: 2021 Q4 | D60: 2505.326 | E60: 6200.515 | F60: 3614.779 | G60: 7478.014 | H60: 634.84 | I60: 1008.340936 | J60: 2505326 | K60: 6200515 | L60: 3614779 | M60: 7478014 | N60: 634840 | O60: 1008.340936
A61: 2022 | B61: 2022K1 | C61: 2022 Q1 | D61: 2569.63 | E61: 5523.671 | F61: 3776.595 | G61: 7152.683 | H61: 712.28 | I61: 859.85648 | J61: 2569630 | K61: 5523671 | L61: 3776595 | M61: 7152683 | N61: 712280 | O61: 859.85648
B62: 2022K2 | C62: 2022 Q2 | D62: 2671.581 | E62: 4676.425 | F62: 3561.52 | G62: 6663.53 | H62: 732.274 | I62: 708.497038 | J62: 2671581 | K62: 4676425 | L62: 3561520 | M62: 6663530 | N62: 732274 | O62: 708.497038
B63: 2022K3 | C63: 2022 Q3 | D63: =J63/1000 -> 2682.282 | E63: =K63/1000 -> 4545.698 | F63: =L63/1000 -> 3436.357 | G63: =M63/1000 -> 6616.651 | H63: =N63/1000 -> 689.6 | I63: 682.494698 | J63: 2682282 | K63: 4545698 | L63: 3436357 | M63: 6616651 | N63: 689600 | O63: 682.494698
B64: 2022K4 | C64: 2022 Q4 | D64: =J64/1000 -> 2679.1 | E64: =K64/1000 -> 4821.15 | F64: =L64/1000 -> 3355.164 | G64: =M64/1000 -> 6814.337 | H64: =N64/1000 -> 737.996 | I64: 755.86422 | J64: 2679100 | K64: 4821150 | L64: 3355164 | M64: 6814337 | N64: 737996 | O64: 755.86422
A65: 2023 | B65: 2023K1 | C65: 2023 Q1 | D65: =J65/1000 -> 2668.12 | E65: =K65/1000 -> 5113.887 | F65: =L65/1000 -> 3542.358 | G65: =M65/1000 -> 7104.12 | H65: =N65/1000 -> 757.186 | I65: 815.510455 | J65: 2668120 | K65: 5113887 | L65: 3542358 | M65: 7104120 | N65: 757186 | O65: 815.510455
B66: 2023K2 | C66: 2023 Q2 | D66: =J66/1000 -> 2718.229 | E66: =K66/1000 -> 5147.916 | F66: =L66/1000 -> 3577.958 | G66: =M66/1000 -> 7430.796 | H66: =N66/1000 -> 698.404 | I66: 821.862256 | J66: 2718229 | K66: 5147916 | L66: 3577958 | M66: 7430796 | N66: 698404 | O66: 821.862256
B67: 2023K3 | C67: 2023 Q3 | D67: =J67/1000 -> 2712.588 | E67: =K67/1000 -> 4811.162 | F67: =L67/1000 -> 3553.203 | G67: =M67/1000 -> 7326.209 | H67: =N67/1000 -> 703.929 | I67: 771.923335 | J67: 2712588 | K67: 4811162 | L67: 3553203 | M67: 7326209 | N67: 703929 | O67: 771.923335
B68: 2023K4 | C68: 2023 Q4 | D68: =J68/1000 -> 2698.111 | E68: =K68/1000 -> 5231.558 | F68: =L68/1000 -> 3460.107 | G68: =M68/1000 -> 7540.243 | H68: =N68/1000 -> 734.419 | I68: 877.004702 | J68: 2698111 | K68: 5231558 | L68: 3460107 | M68: 7540243 | N68: 734419 | O68: 877.004702
A69: 2024 | B69: 2024K1 | C69: 2024 Q1 | D69: =J69/1000 -> 2711.808 | E69: =K69/1000 -> 5632.988 | F69: =L69/1000 -> 3632.291 | G69: =M69/1000 -> 8152.939 | H69: =N69/1000 -> 769.013 | I69: =O69 -> 939.331706 | J69: 2711808 | K69: 5632988 | L69: 3632291 | M69: 8152939 | N69: 769013 | O69: 939.331706
B70: 2024K2 | C70: 2024 Q2 | D70: =J70/1000 -> 2768.623 | E70: =K70/1000 -> 5747.088 | F70: =L70/1000 -> 3671.301 | G70: =M70/1000 -> 8339.621 | H70: =N70/1000 -> 868.014 | I70: 951.027098 | J70: 2768623 | K70: 5747088 | L70: 3671301 | M70: 8339621 | N70: 868014 | O70: 951.027098
B71: 2024K3 | C71: 2024 Q3 | D71: =J71/1000 -> 2754.033 | E71: =K71/1000 -> 5919.828 | F71: =L71/1000 -> 3684.784 | G71: =M71/1000 -> 8514.649 | H71: =N71/1000 -> 857.322 | I71: 989.725615 | J71: 2754033 | K71: 5919828 | L71: 3684784 | M71: 8514649 | N71: 857322 | O71: 989.725615
B72: 2024K4 | C72: 2024 Q4 | D72: =J72/1000 -> 2751.918 | E72: =K72/1000 -> 5737.196 | F72: =L72/1000 -> 3685.425 | G72: =M72/1000 -> 8746.042 | H72: =N72/1000 -> 901.575 | I72: 928.76823 | J72: 2751918 | K72: 5737196 | L72: 3685425 | M72: 8746042 | N72: 901575 | O72: 928.76823
A73: 2025 | B73: 2025K1 | C73: 2025 Q1 | D73: =J73/1000 -> 2764.589 | E73: =K73/1000 -> 5673.411 | F73: =L73/1000 -> 3772.218 | G73: =M73/1000 -> 8366.835 | H73: =N73/1000 -> 934.078 | I73: 919.725006 | J73: 2764589 | K73: 5673411 | L73: 3772218 | M73: 8366835 | N73: 934078 | O73: 919.725006
B74: 2025K2 | C74: 2025 Q2 | D74: 2874.46 | E74: 5896.062 | F74: 3724.172 | G74: 8720.047 | H74: 1073.894 | I74: 927.238907 | J74: 2874460 | K74: 5896062 | L74: 3724172 | M74: 8720047 | N74: 1073894 | O74: 927.238907
B75: 2025K3 | C75: 2025 Q3 | D75: =J75/1000 -> 2868.443 | E75: =K75/1000 -> 5910.019 | F75: =L75/1000 -> 3759.04 | G75: =M75/1000 -> 9017.126 | H75: =N75/1000 -> 1075.478 | I75: =O75 -> 957.62185 | J75: 2868443 | K75: 5910019 | L75: 3759040 | M75: 9017126 | N75: 1075478 | O75: 957.62185
B76: 2025K4 | C76: 2025 Q4 | D76: 2879.413 | E76: 6180.013 | F76: 3772.875 | G76: 9151.473 | H76: 1082.515 | I76: 1016.394835 | J76: 2879413 | K76: 6180013 | L76: 3772875 | M76: 9151473 | N76: 1082515 | O76: 1016.394835
A77: 2026 | B77: 2026K1 | C77: 2026 Q1 | D77: =J77/1000 -> 2900.696 | E77: =K77/1000 -> 6261.438 | F77: =L77/1000 -> 3924.038 | G77: =M77/1000 -> 9119.008 | H77: =N77/1000 -> 1125.921 | I77: =O77 -> 994.083142 | J77: 2900696 | K77: 6261438 | L77: 3924038 | M77: 9119008 | N77: 1125921 | O77: 994.083142

Sheet Diagram 1
B1: Hushållens finansiella tillgångar (mdkr) och börsindex

Sheet Graph 1
B1: Household financial assets (SEK billions) and stock market index
